fUST/lending_fUST_20250727
["ID","MTS","AMOUNT","RATE_DAILY","PERIOD"]
[375310322,1753623045886,-460.0,0.00021095,2]
[375310324,1753623045895,-647.4,0.00021097,4]
[375310326,1753623045905,-851.70049063,0.00021107,4]
[375310328,1753623045915,-481.584,0.00021172,2]
[375310330,1753623045925,-851.70049063,0.00021279,5]
[375310332,1753623045935,-840.75038169,0.00021293,2]
[375310334,1753623045944,-312.16666667,0.00021293,2]
[375310336,1753623045954,-460.0,0.00021369,2]
[375310338,1753623045963,-460.0,0.00021369,2]
[375310340,1753623045973,-460.0,0.00021369,2]
[375310342,1753623045982,-1629.45,0.00021369,2]
[375310344,1753623045992,-460.0,0.00021369,2]
[375310346,1753623046005,-543.93,0.00021369,2]
[375310348,1753623046015,-460.0,0.00021369,2]
[375310350,1753623046025,-460.0,0.00021369,2]
[375310352,1753623046034,-460.0,0.00021369,2]
[375310354,1753623046044,-598.47,0.00021369,2]
[375310356,1753623046053,-460.0,0.00021369,2]
[375310358,1753623046063,-460.0,0.00021369,2]
[375310360,1753623046073,-460.0,0.00021369,2]
[375310362,1753623046083,-460.0,0.00021369,2]
[375310364,1753623046093,-3055.01,0.00021369,2]
[375310365,1753623046103,-460.0,0.00021369,2]
[375310366,1753623046112,-881.47,0.00021369,2]
[375310367,1753623046121,-856.62,0.00021369,2]
[375310368,1753623046131,-551.68,0.00021369,2]
[375310369,1753623046140,-680.2,0.00021369,2]
[375310370,1753623046150,-702.74,0.00021369,2]
[375310371,1753623046159,-756.66,0.00021369,2]
[375310372,1753623046168,-460.0,0.00021369,2]
[375310373,1753623046178,-698.98,0.00021369,2]
[375310374,1753623046187,-281.44,0.00021369,2]
[375310376,1753623046197,-460.0,0.00021369,2]
[375310378,1753623046208,-835.27,0.00021369,2]
[375310380,1753623046218,-512.65,0.00021369,2]
[375310382,1753623046228,-204.37,0.00021369,2]
[375310384,1753623046238,-460.0,0.00021369,2]
[375310386,1753623046247,-460.0,0.00021369,2]
[375310388,1753623046257,-757.32,0.00021369,2]
[375310390,1753623046267,-1484.05,0.00021369,2]
[375310392,1753623046276,-460.0,0.00021369,2]
[375310394,1753623046286,-851.70049063,0.00021452,5]
[375310396,1753623046298,-360.0,0.00021519,2]
[375310399,1753623046308,-647.4,0.00021533,4]
[375310401,1753623046318,-161.73,0.00021622,2]
[375310403,1753623046327,-851.70049063,0.00021624,5]
[375310405,1753623046338,-201.28,0.00021643,2]
[375310407,1753623046348,-460.0,0.00021643,2]
[375310409,1753623046358,-460.0,0.00021643,2]
[375310410,1753623046368,-1629.45,0.00021643,2]
[375310411,1753623046377,-460.0,0.00021643,2]
[375310412,1753623046387,-543.93,0.00021643,2]
[375310413,1753623046397,-460.0,0.00021643,2]
[375310414,1753623046408,-460.0,0.00021643,2]
[375310415,1753623046417,-598.47,0.00021643,2]
[375310416,1753623046428,-460.0,0.00021643,2]
[375310417,1753623046442,-460.0,0.00021643,2]
[375310418,1753623046451,-460.0,0.00021643,2]
[375310419,1753623046462,-460.0,0.00021643,2]
[375310420,1753623046474,-3055.01,0.00021643,2]
[375310421,1753623046484,-460.0,0.00021643,2]
[375310422,1753623046494,-881.47,0.00021643,2]
[375310423,1753623046572,-856.62,0.00021643,2]
[375310424,1753623046583,-551.68,0.00021643,2]
[375310425,1753623046593,-680.2,0.00021643,2]
[375310426,1753623046603,-702.74,0.00021643,2]
[375310427,1753623046613,-756.66,0.00021643,2]
[375310428,1753623046623,-460.0,0.00021643,2]
[375310429,1753623046633,-698.98,0.00021643,2]
[375310430,1753623046643,-460.0,0.00021643,2]
[375310431,1753623046653,-835.27,0.00021643,2]
[375310432,1753623046662,-512.65,0.00021643,2]
[375310433,1753623046672,-460.0,0.00021643,2]
[375310434,1753623046687,-460.0,0.00021643,2]
[375310435,1753623046697,-757.32,0.00021643,2]
[375310436,1753623046706,-1484.05,0.00021643,2]
[375310437,1753623046715,-361.12,0.00021643,2]
[375310438,1753623046725,-851.70049063,0.00021797,6]
[375310439,1753623046736,-3285.261493,0.00021835,2]
[375310440,1753623046746,-460.0,0.00021917,2]
[375310441,1753623046755,-460.0,0.00021917,2]
[375310442,1753623046765,-1629.45,0.00021917,2]
[375310443,1753623046775,-460.0,0.00021917,2]
[375310444,1753623046784,-543.93,0.00021917,2]
[375310445,1753623046794,-460.0,0.00021917,2]
[375310446,1753623046803,-460.0,0.00021917,2]
[375310447,1753623046813,-598.47,0.00021917,2]
[375310448,1753623046823,-460.0,0.00021917,2]
[375310449,1753623046833,-460.0,0.00021917,2]
[375310450,1753623046844,-460.0,0.00021917,2]
[375310451,1753623046854,-460.0,0.00021917,2]
[375310452,1753623046863,-3055.01,0.00021917,2]
[375310453,1753623046872,-460.0,0.00021917,2]
[375310454,1753623046881,-881.47,0.00021917,2]
[375310455,1753623046890,-856.62,0.00021917,2]
[375310456,1753623046900,-551.68,0.00021917,2]
[375310457,1753623046909,-680.2,0.00021917,2]
[375310458,1753623046919,-702.74,0.00021917,2]
[375310459,1753623046928,-756.66,0.00021917,2]
[375310460,1753623046937,-460.0,0.00021917,2]
[375310461,1753623046946,-698.98,0.00021917,2]
[375310462,1753623046956,-320.58,0.00021917,2]
[375310463,1753623046966,-835.27,0.00021917,2]
[375310464,1753623046975,-512.65,0.00021917,2]
[375310465,1753623046985,-460.0,0.00021917,2]
[375310466,1753623046994,-460.0,0.00021917,2]
[375310467,1753623047005,-757.32,0.00021917,2]
[375310468,1753623047014,-1484.05,0.00021917,2]
[375310469,1753623047023,-166.55698328,0.00021925,2]
[375310470,1753623047032,-851.70049063,0.00021969,6]
[375310471,1753623047042,-647.4,0.00021969,4]
[375310472,1753623047051,-652.48,0.00022,7]
[375310473,1753623047059,-2587.49,0.00022,7]
[375310474,1753623047069,-174.58,0.00022,2]
[375310475,1753623047078,-500.0,0.00022056,2]
[375310476,1753623047089,-460.0,0.00022067,2]
[375310477,1753623047099,-3285.261493,0.00022077,2]
[375310478,1753623047108,-851.70049063,0.00022141,6]
[375310479,1753623047117,-460.0,0.00022191,2]
[375310480,1753623047126,-460.0,0.00022191,2]
[375310481,1753623047135,-1629.45,0.00022191,2]
[375310482,1753623047145,-460.0,0.00022191,2]
[375310483,1753623047154,-543.93,0.00022191,2]
[375310484,1753623047163,-460.0,0.00022191,2]
[375310485,1753623047173,-460.0,0.00022191,2]
[375310486,1753623047182,-598.47,0.00022191,2]
[375310487,1753623047193,-460.0,0.00022191,2]
[375310488,1753623047202,-460.0,0.00022191,2]
[375310489,1753623047212,-460.0,0.00022191,2]
[375310490,1753623047221,-460.0,0.00022191,2]
[375310491,1753623047231,-3055.01,0.00022191,2]
[375310492,1753623047240,-460.0,0.00022191,2]
[375310493,1753623047250,-881.47,0.00022191,2]
[375310494,1753623047260,-856.62,0.00022191,2]
[375310495,1753623047269,-551.68,0.00022191,2]
[375310496,1753623047279,-680.2,0.00022191,2]
[375310497,1753623047290,-702.74,0.00022191,2]
[375310498,1753623047305,-756.66,0.00022191,2]
[375310499,1753623047314,-460.0,0.00022191,2]
[375310500,1753623047324,-698.98,0.00022191,2]
[375310501,1753623047335,-835.27,0.00022191,2]
[375310502,1753623047345,-512.65,0.00022191,2]
[375310503,1753623047355,-460.0,0.00022191,2]
[375310504,1753623047364,-460.0,0.00022191,2]
[375310505,1753623047376,-757.32,0.00022191,2]
[375310506,1753623047385,-1484.05,0.00022191,2]
[375310507,1753623047405,-23783.67,0.000222,2]
[375310508,1753623047415,-851.70049063,0.00022314,7]
[375310509,1753623047424,-3285.261493,0.00022351,2]
[375310510,1753623047434,-647.4,0.00022405,5]
[375310511,1753623047444,-250.0,0.00022455,2]
[375310512,1753623047454,-460.0,0.00022465,2]
[375310513,1753623047464,-460.0,0.00022465,2]
[375310514,1753623047474,-1629.45,0.00022465,2]
[375310515,1753623047484,-460.0,0.00022465,2]
[375310516,1753623047494,-543.93,0.00022465,2]
[375310517,1753623047503,-460.0,0.00022465,2]
[375310518,1753623047513,-160.46,0.00022465,2]
[375310519,1753623047522,-598.47,0.00022465,2]
[375310520,1753623047533,-460.0,0.00022465,2]
[375310521,1753623047542,-460.0,0.00022465,2]
[375310522,1753623047552,-460.0,0.00022465,2]
[375310523,1753623047562,-460.0,0.00022465,2]
[375310524,1753623047572,-3055.01,0.00022465,2]
[375310525,1753623047582,-460.0,0.00022465,2]
[375310526,1753623047591,-881.47,0.00022465,2]
[375310527,1753623047601,-856.62,0.00022465,2]
[375310528,1753623047611,-551.68,0.00022465,2]
[375310529,1753623047621,-680.2,0.00022465,2]
[375310530,1753623047631,-702.74,0.00022465,2]
[375310531,1753623047641,-756.66,0.00022465,2]
[375310532,1753623047651,-460.0,0.00022465,2]
[375310533,1753623047660,-698.98,0.00022465,2]
[375310534,1753623047671,-835.27,0.00022465,2]
[375310535,1753623047680,-512.65,0.00022465,2]
[375310536,1753623047690,-460.0,0.00022465,2]
[375310537,1753623047700,-460.0,0.00022465,2]
[375310538,1753623047710,-1683.47,0.00022465,2]
[375310539,1753623047719,-757.32,0.00022465,2]
[375310540,1753623047729,-1484.05,0.00022465,2]
[375310541,1753623047738,-851.70049063,0.00022486,7]
[375310542,1753623047748,-3712.899333,0.0002249,7]
[375310543,1753623047758,-787.72,0.000225,2]
[375310544,1753623047769,-174.58,0.000225,2]
[375310545,1753623047778,-215.64,0.00022562,2]
[375310546,1753623047788,-273.284244,0.00022603,2]
[375310547,1753623047797,-627.27167015,0.00022615,2]
[375310548,1753623047807,-851.70049063,0.00022659,7]
[375310549,1753623047817,-587.0,0.00022662,2]
[375310550,1753623047827,-3285.261493,0.00022709,2]
[375310551,1753623047836,-969.0,0.00022713,2]
[375310552,1753623047845,-421.197,0.00022713,2]
[375310553,1753623047855,-2158.0,0.00022713,2]
[375310554,1753623047864,-460.0,0.00022739,2]
[375310555,1753623047874,-460.0,0.00022739,2]
[375310556,1753623047884,-1629.45,0.00022739,2]
[375310557,1753623047894,-528.2,0.00022739,2]
[375310558,1753623047904,-543.93,0.00022739,2]
[375310559,1753623047913,-460.0,0.00022739,2]
[375310560,1753623047923,-598.47,0.00022739,2]
[375310561,1753623047932,-588.39,0.00022739,2]
[375310562,1753623047942,-460.0,0.00022739,2]
[375310563,1753623047951,-460.0,0.00022739,2]
[375310564,1753623047961,-540.05,0.00022739,2]
[375310565,1753623047971,-3055.01,0.00022739,2]
[375310566,1753623047980,-460.0,0.00022739,2]
[375310567,1753623047990,-881.47,0.00022739,2]
[375310568,1753623048000,-856.62,0.00022739,2]
[375310569,1753623048010,-551.68,0.00022739,2]
[375310570,1753623048021,-680.2,0.00022739,2]
[375310571,1753623048031,-702.74,0.00022739,2]
[375310572,1753623048041,-756.66,0.00022739,2]
[375310573,1753623048051,-460.0,0.00022739,2]
[375310574,1753623048061,-698.98,0.00022739,2]
[375310575,1753623048071,-835.27,0.00022739,2]
[375310576,1753623048081,-512.65,0.00022739,2]
[375310577,1753623048091,-460.0,0.00022739,2]
[375310578,1753623048101,-460.0,0.00022739,2]
[375310579,1753623048111,-757.32,0.00022739,2]
[375310580,1753623048122,-1484.05,0.00022739,2]
[375310581,1753623048131,-851.70049063,0.00022831,8]
[375310582,1753623048141,-647.4,0.00022841,5]
[375310583,1753623048152,-166.55698328,0.00022875,2]
[375310584,1753623048161,-139192.82726752,0.00022929,2]
[375310585,1753623048172,-150.0,0.00022938,2]
[375310586,1753623048181,-160.0,0.00023,2]
[375310587,1753623048191,-3285.261493,0.00023003,2]
[375310588,1753623048202,-851.70049063,0.00023003,8]
[375310589,1753623048213,-460.0,0.00023013,2]
[375310590,1753623048225,-379.06,0.00023013,2]
[375310591,1753623048235,-1629.45,0.00023013,2]
[375310592,1753623048245,-543.93,0.00023013,2]
[375310593,1753623048255,-460.0,0.00023013,2]
[375310594,1753623048264,-598.47,0.00023013,2]
[375310595,1753623048274,-460.0,0.00023013,2]
[375310596,1753623048284,-460.0,0.00023013,2]
[375310597,1753623048297,-3055.01,0.00023013,2]
[375310598,1753623048306,-460.0,0.00023013,2]
[375310599,1753623048316,-881.47,0.00023013,2]
[375310600,1753623048326,-856.62,0.00023013,2]
[375310601,1753623048337,-551.68,0.00023013,2]
[375310602,1753623048347,-680.2,0.00023013,2]
[375310603,1753623048357,-702.74,0.00023013,2]
[375310604,1753623048368,-756.66,0.00023013,2]
[375310605,1753623048378,-460.0,0.00023013,2]
[375310606,1753623048387,-698.98,0.00023013,2]
[375310607,1753623048397,-835.27,0.00023013,2]
[375310608,1753623048407,-512.65,0.00023013,2]
[375310609,1753623048417,-508.39,0.00023013,2]
[375310610,1753623048427,-608.03,0.00023013,2]
[375310611,1753623048438,-757.32,0.00023013,2]
[375310613,1753623048448,-1484.05,0.00023013,2]
[375310615,1753623048459,-428.8286288,0.00023068,2]
[375310617,1753623048468,-520.02,0.00023075,3]
[375310619,1753623048478,-518.2,0.00023075,6]
[375310621,1753623048487,-500.0,0.00023152,2]
[375310622,1753623048497,-3285.261497,0.0002317,2]
[375310623,1753623048508,-520.02,0.00023175,7]
[375310624,1753623048518,-518.2,0.00023175,4]
[375310625,1753623048527,-851.70049063,0.00023176,8]
[375310626,1753623048538,-2587.49,0.000232,7]
[375310627,1753623048547,-520.02,0.00023275,6]
[375310628,1753623048557,-518.2,0.00023275,2]
[375310629,1753623048567,-647.4,0.00023276,5]
[375310630,1753623048578,-460.0,0.00023287,2]
[375310631,1753623048587,-1629.45,0.00023287,2]
[375310632,1753623048598,-543.93,0.00023287,2]
[375310633,1753623048608,-460.0,0.00023287,2]
[375310634,1753623048618,-598.47,0.00023287,2]
[375310635,1753623048628,-445.11,0.00023287,2]
[375310636,1753623048638,-460.0,0.00023287,2]
[375310637,1753623048648,-3055.01,0.00023287,2]
[375310638,1753623048658,-460.0,0.00023287,2]
[375310639,1753623048668,-881.47,0.00023287,2]
[375310640,1753623048678,-856.62,0.00023287,2]
[375310641,1753623048688,-551.68,0.00023287,2]
[375310642,1753623048699,-680.2,0.00023287,2]
[375310643,1753623048709,-702.74,0.00023287,2]
[375310644,1753623048719,-533.06614092,0.00023287,2]
[375310645,1753623048816,-223.59385908,0.00023287,2]
[375310646,1753623048826,-460.0,0.00023287,2]
[375310647,1753623048836,-698.98,0.00023287,2]
[375310648,1753623048846,-835.27,0.00023287,2]
[375310649,1753623048856,-512.65,0.00023287,2]
[375310650,1753623048865,-757.32,0.00023287,2]
[375310651,1753623048875,-1484.05,0.00023287,2]
[375310652,1753623048885,-851.70049063,0.00023348,9]
[375310653,1753623048895,-520.02,0.00023375,5]
[375310654,1753623048904,-518.22,0.00023375,3]
[375310655,1753623048914,-23783.67,0.000234,2]
[375310656,1753623048924,-4068.26775785,0.000234,2]
[375310657,1753623048934,-668.0,0.00023429,2]
[375310658,1753623048944,-520.02,0.00023475,3]
[375310659,1753623048954,-300.80236473,0.00023485,2]
[375310660,1753623048964,-1000.0,0.000235,2]
[375310661,1753623048974,-269.55,0.00023502,2]
[375310662,1753623048985,-1251.44204507,0.00023518,2]
[375310663,1753623048995,-851.70049063,0.00023521,9]
[375310664,1753623049005,-151.0,0.00023525,2]
[375310665,1753623049015,-25000.0,0.00023525,2]
[375310666,1753623049025,-502.05411089,0.00023525,2]
[375310667,1753623049035,-151.0,0.00023525,2]
[375310668,1753623049045,-151.0,0.00023525,2]
[375310669,1753623049055,-151.0,0.00023525,2]
[375310670,1753623049064,-151.0,0.00023525,2]
[375310671,1753623049075,-151.0,0.00023525,2]
[375310672,1753623049085,-151.0,0.00023525,2]
[375310673,1753623049095,-151.0,0.00023525,2]
[375310674,1753623049105,-151.0,0.00023525,2]
[375310675,1753623049115,-151.0,0.00023525,2]
[375310676,1753623049125,-151.0,0.00023525,2]
[375310677,1753623049135,-151.0,0.00023525,2]
[375310678,1753623049145,-6536.16983842,0.00023525,2]
[375310679,1753623049156,-164.544173,0.00023525,2]
[375310680,1753623049166,-151.0,0.00023525,2]
[375310681,1753623049176,-151.0,0.00023525,2]
[375310682,1753623049187,-151.0,0.00023525,2]
[375310683,1753623049197,-151.0,0.00023525,2]
[375310684,1753623049207,-151.0,0.00023525,2]
[375310685,1753623049216,-151.0,0.00023525,2]
[375310686,1753623049229,-151.0,0.00023525,2]
[375310687,1753623049239,-151.0,0.00023525,2]
[375310688,1753623049248,-151.0,0.00023525,2]
[375310689,1753623049258,-151.0,0.00023525,2]
[375310690,1753623049268,-291.18913902,0.00023525,2]
[375310691,1753623049279,-3801.642,0.00023525,2]
[375310692,1753623049291,-151.0,0.00023525,2]
[375310693,1753623049302,-151.0,0.00023525,2]
[375310694,1753623049311,-151.0,0.00023525,2]
[375310695,1753623049321,-151.0,0.00023525,2]
[375310696,1753623049331,-151.0,0.00023525,2]
[375310697,1753623049340,-151.0,0.00023525,2]
[375310698,1753623049350,-151.0,0.00023525,2]
[375310699,1753623049359,-151.0,0.00023525,2]
[375310700,1753623049370,-151.0,0.00023525,2]
[375310701,1753623049380,-151.0,0.00023525,2]
[375310702,1753623049389,-151.0,0.00023525,2]
[375310703,1753623049399,-151.0,0.00023525,2]
[375310704,1753623049409,-151.0,0.00023525,2]
[375310705,1753623049419,-151.0,0.00023525,2]
[375310706,1753623049428,-151.0,0.00023525,2]
[375310707,1753623049438,-151.0,0.00023525,2]
[375310708,1753623049449,-151.0,0.00023525,2]
[375310709,1753623049459,-270.27902396,0.00023525,2]
[375310710,1753623049469,-460.0,0.00023561,2]
[375310711,1753623049478,-1629.45,0.00023561,2]
[375310712,1753623049488,-543.93,0.00023561,2]
[375310713,1753623049498,-200.0,0.00023561,2]
[375310714,1753623049508,-200.0,0.00023561,2]
[375310715,1753623049518,-200.0,0.00023561,2]
[375310716,1753623049527,-200.0,0.00023561,2]
[375310717,1753623049537,-200.0,0.00023561,2]
[375310718,1753623049547,-312.48441259,0.00023561,2]
[375310719,1753623049557,-460.0,0.00023561,2]
[375310720,1753623049567,-598.47,0.00023561,2]
[375310721,1753623049577,-167.06,0.00023561,2]
[375310722,1753623049587,-3055.01,0.00023561,2]
[375310723,1753623049597,-460.0,0.00023561,2]
[375310724,1753623049607,-881.47,0.00023561,2]
[375310725,1753623049617,-856.62,0.00023561,2]
[375310726,1753623049626,-551.68,0.00023561,2]
[375310727,1753623049636,-680.2,0.00023561,2]
[375310728,1753623049646,-702.74,0.00023561,2]
[375310729,1753623049655,-756.66,0.00023561,2]
[375310730,1753623049665,-428.47,0.00023561,2]
[375310731,1753623049675,-698.98,0.00023561,2]
[375310732,1753623049686,-835.27,0.00023561,2]
[375310733,1753623049696,-512.65,0.00023561,2]
[375310734,1753623049705,-757.32,0.00023561,2]
[375310735,1753623049715,-1484.05,0.00023561,2]
[375310736,1753623049724,-150.60043876,0.00023573,2]
[375310737,1753623049734,-520.07,0.00023575,5]
[375310738,1753623049744,-3942.302754,0.0002358,2]
[375310739,1753623049754,-536.09,0.0002359,5]
[375310740,1753623049764,-511.25,0.00023596,5]
[375310741,1753623049774,-151.0,0.000236,6]
[375310742,1753623049783,-4088.1679559,0.00023635,2]
[375310743,1753623049793,-4239.43017027,0.0002369,2]
[375310744,1753623049803,-536.09,0.0002369,5]
[375310745,1753623049813,-851.70049063,0.00023693,9]
[375310746,1753623049823,-511.25,0.00023696,6]
[375310747,1753623049833,-652.48,0.000237,7]
[375310748,1753623049843,-647.4,0.00023712,6]
[375310749,1753623049852,-4396.28908657,0.00023745,2]
[375310750,1753623049861,-150.76109544,0.00023753,2]
[375310751,1753623049871,-536.14,0.0002379,7]
[375310752,1753623049880,-511.25,0.00023796,2]
[375310753,1753623049889,-4558.95178277,0.000238,2]
[375310755,1753623049899,-166.55698328,0.00023824,2]
[375310757,1753623049908,-282.43949816,0.00023835,2]
[375310759,1753623049917,-1629.45,0.00023835,2]
[375310761,1753623049926,-543.93,0.00023835,2]
[375310763,1753623049935,-172.5,0.00023835,2]
[375310765,1753623049945,-598.47,0.00023835,2]
[375310767,1753623049954,-3055.01,0.00023835,2]
[375310768,1753623049965,-460.0,0.00023835,2]
[375310769,1753623049975,-881.47,0.00023835,2]
[375310770,1753623049985,-856.62,0.00023835,2]
[375310771,1753623049994,-551.68,0.00023835,2]
[375310772,1753623050004,-680.2,0.00023835,2]
[375310773,1753623050014,-702.74,0.00023835,2]
[375310774,1753623050024,-756.66,0.00023835,2]
[375310775,1753623050034,-698.98,0.00023835,2]
[375310776,1753623050045,-835.27,0.00023835,2]
[375310777,1753623050055,-512.65,0.00023835,2]
[375310778,1753623050065,-757.32,0.00023835,2]
[375310779,1753623050075,-1484.05,0.00023835,2]
[375310780,1753623050085,-4727.63299873,0.00023855,2]
[375310781,1753623050096,-851.70049063,0.00023866,10]
[375310782,1753623050106,-511.25,0.00023896,4]
[375310783,1753623050116,-3188.68,0.000239,7]
[375310784,1753623050126,-1344.15491364,0.000239,2]
[375310785,1753623050136,-4902.55541968,0.0002391,2]
[375310786,1753623050146,-668.0,0.00023916,2]
[375310787,1753623050156,-265.0,0.0002393,2]
[375310788,1753623050166,-150.76109544,0.00023945,2]
[375310789,1753623050177,-1158.08855282,0.00023965,2]
[375310790,1753623050187,-265.0,0.00023984,2]
[375310791,1753623050198,-511.25,0.00023996,6]
[375310792,1753623050209,-2377.11549352,0.00024,2]
[375310793,1753623050220,-10161.6513479,0.00024,2]
[375310794,1753623050230,-162.11692712,0.00024,2]
[375310795,1753623050241,-851.70049063,0.00024038,10]
[375310796,1753623050252,-668.0,0.00024062,2]
[375310797,1753623050262,-600.0,0.0002407,2]
[375310798,1753623050273,-25000.0,0.00024073,2]
[375310799,1753623050418,-172.29839479,0.00024082,2]
[375310800,1753623050428,-172.29839478,0.00024082,2]
[375310801,1753623050438,-600.0,0.00024086,2]
[375310802,1753623050448,-511.25,0.00024096,5]
[375310803,1753623050457,-1629.45,0.00024109,2]
[375310804,1753623050467,-543.93,0.00024109,2]
[375310805,1753623050477,-598.47,0.00024109,2]
[375310806,1753623050486,-3055.01,0.00024109,2]
[375310807,1753623050497,-460.0,0.00024109,2]
[375310808,1753623050506,-881.47,0.00024109,2]
[375310809,1753623050516,-856.62,0.00024109,2]
[375310810,1753623050526,-551.68,0.00024109,2]
[375310811,1753623050538,-680.2,0.00024109,2]
[375310812,1753623050548,-702.74,0.00024109,2]
[375310813,1753623050558,-756.66,0.00024109,2]
[375310814,1753623050568,-698.98,0.00024109,2]
[375310815,1753623050578,-835.27,0.00024109,2]
[375310816,1753623050589,-512.65,0.00024109,2]
[375310817,1753623050598,-757.32,0.00024109,2]
[375310818,1753623050608,-150.76109544,0.0002411,2]
[375310819,1753623050617,-647.4,0.00024148,6]
[375310820,1753623050628,-511.25,0.00024196,6]
[375310821,1753623050638,-500.0,0.00024206,2]
[375310822,1753623050647,-851.70049063,0.0002421,10]
[375310823,1753623050657,-600.0,0.00024239,2]
[375310824,1753623050667,-500.0,0.00024248,2]
[375310825,1753623050676,-500.99913186,0.00024287,2]
[375310826,1753623050687,-500.0,0.00024291,2]
[375310827,1753623050696,-511.25,0.00024296,2]
[375310828,1753623050706,-150.76109544,0.00024301,2]
[375310829,1753623050716,-500.0,0.00024318,2]
[375310830,1753623050726,-600.0,0.0002436,2]
[375310831,1753623050736,-9545.71,0.00024377,11]
[375310832,1753623050745,-851.70049063,0.00024383,11]
[375310833,1753623050755,-1629.45,0.00024383,2]
[375310834,1753623050765,-543.93,0.00024383,2]
[375310835,1753623050775,-598.47,0.00024383,2]
[375310836,1753623050785,-3055.01,0.00024383,2]
[375310837,1753623050795,-460.0,0.00024383,2]
[375310838,1753623050805,-881.47,0.00024383,2]
[375310839,1753623050815,-551.68,0.00024383,2]
[375310840,1753623050826,-856.62,0.00024383,2]
[375310841,1753623050836,-680.2,0.00024383,2]
[375310842,1753623050846,-702.74,0.00024383,2]
[375310843,1753623050856,-756.66,0.00024383,2]
[375310844,1753623050866,-698.98,0.00024383,2]
[375310845,1753623050876,-835.27,0.00024383,2]
[375310846,1753623050886,-512.65,0.00024383,2]
[375310847,1753623050895,-757.32,0.00024383,2]
[375310848,1753623050905,-172.29839479,0.00024384,2]
[375310849,1753623050915,-172.29839478,0.00024384,2]
[375310850,1753623050925,-511.25,0.00024396,4]
[375310851,1753623050935,-500.0,0.00024396,2]
[375310852,1753623050944,-2587.49,0.000244,7]
[375310853,1753623050954,-3745.68409038,0.000244,2]
[375310854,1753623050966,-304.37602874,0.00024412,5]
[375310855,1753623050976,-265.0,0.00024421,2]
[375310856,1753623050986,-156.137012,0.00024423,5]
[375310857,1753623050996,-323.46,0.00024442,2]
[375310858,1753623051005,-600.0,0.00024445,2]
[375310859,1753623051015,-600.0,0.00024459,2]
[375310860,1753623051025,-500.0,0.00024483,2]
[375310861,1753623051035,-150.76109544,0.00024493,2]
[375310862,1753623051045,-511.25,0.00024496,7]
[375310863,1753623051055,-5971.38042665,0.000245,2]
[375310864,1753623051064,-17965.09540752,0.000245,4]
[375310865,1753623051080,-10951.96238003,0.000245,4]
[375310866,1753623051266,-460.0,0.00019178,2]
[375310867,1753623051276,-460.0,0.00019178,2]
[375310868,1753623051285,-166.42,0.00019452,2]
[375310869,1753623051300,-460.0,0.00019452,2]
[375310870,1753623051310,-666.91954411,0.00019626,2]
[375310871,1753623051319,-460.0,0.00019726,2]
[375310872,1753623051329,-460.0,0.0002,2]